[Event "Skol-SM i Schack 2024, Grupp A"]
[Site "Arena Varberg, Kattegattsvagen 26, Varberg, Sweden"]
[Date "2024.10.12"]
[Round "6.10"]
[White "Sniegon, Filip"]
[Black "Abdulkader, Ahmad"]
[Result "1-0"]
[TimeControl "45 minutes + 10 seconds per move from move one."]
[WhiteFideId "1778277"]
[BlackFideId "1776550"]
[WhiteElo "1684"]
[BlackElo "1613"]

1. c4 {[%clk 00:45:18]} {[%emt 00:00:01]} e5 {[%clk 00:45:19]} {[%emt
00:00:01]} 2. g3 {[%clk 00:45:26]} {[%emt 00:00:02]} Nc6 {[%clk 00:45:23]}
{[%emt 00:00:07]} 3. Bg2 {[%clk 00:45:34]} {[%emt 00:00:02]} Nf6 {[%clk
00:45:31]} {[%emt 00:00:01]} 4. d3 {[%clk 00:45:33]} {[%emt 00:00:10]} Bc5
{[%clk 00:45:33]} {[%emt 00:00:09]} 5. Nf3 {[%clk 00:45:37]} {[%emt 00:00:06]}
d6 {[%clk 00:45:42]} {[%emt 00:00:01]} 6. O-O {[%clk 00:45:44]} {[%emt
00:00:03]} Bg4 {[%clk 00:45:50]} {[%emt 00:00:02]} 7. Nc3 {[%clk 00:45:41]}
{[%emt 00:00:14]} Qd7 {[%clk 00:45:57]} {[%emt 00:00:02]} 8. Re1 {[%clk
00:45:48]} {[%emt 00:00:02]} O-O {[%clk 00:44:53]} {[%emt 00:01:15]} 9. Bd2
{[%clk 00:44:54]} {[%emt 00:01:04]} a6 {[%clk 00:43:56]} {[%emt 00:01:07]} 10.
Qc1 {[%clk 00:41:50]} {[%emt 00:03:14]} Bh3 {[%clk 00:41:55]} {[%emt 00:02:11]}
11. Bh1 {[%clk 00:40:59]} {[%emt 00:01:00]} Ng4 {[%clk 00:41:36]} {[%emt
00:00:29]} 12. e3 {[%clk 00:40:32]} {[%emt 00:00:38]} f5 {[%clk 00:40:42]}
{[%emt 00:01:04]} 13. Ng5 {[%clk 00:39:20]} {[%emt 00:01:22]} f4 {[%clk
00:40:12]} {[%emt 00:00:39]} 14. Nxh3 {[%clk 00:38:31]} {[%emt 00:01:00]} fxg3
{[%clk 00:40:18]} {[%emt 00:00:05]} 15. fxg3 {[%clk 00:34:22]} {[%emt
00:04:19]} Nb4 {[%clk 00:37:48]} {[%emt 00:02:40]} 16. Qb1 {[%clk 00:30:45]}
{[%emt 00:03:47]} Rab8 {[%clk 00:37:09]} {[%emt 00:00:48]} 17. a3 {[%clk
00:25:33]} {[%emt 00:05:22]} Nc6 {[%clk 00:37:03]} {[%emt 00:00:16]} 18. Bg2
{[%clk 00:21:05]} {[%emt 00:04:37]} h6 {[%clk 00:36:50]} {[%emt 00:00:25]} 19.
Ne4 {[%clk 00:18:36]} {[%emt 00:02:38]} Ba7 {[%clk 00:36:47]} {[%emt 00:00:13]}
20. Nhf2 {[%clk 00:17:58]} {[%emt 00:00:48]} Nxf2 {[%clk 00:34:48]} {[%emt
00:02:09]} 21. Nxf2 {[%clk 00:18:06]} {[%emt 00:00:03]} Ne7 {[%clk 00:34:49]}
{[%emt 00:00:09]} 22. Qd1 {[%clk 00:16:41]} {[%emt 00:01:34]} Nf5 {[%clk
00:33:35]} {[%emt 00:01:24]} 23. Bh3 {[%clk 00:16:32]} {[%emt 00:00:19]} Qe7
{[%clk 00:33:43]} {[%emt 00:00:02]} 24. Bxf5 {[%clk 00:15:26]} {[%emt
00:01:16]} Rxf5 {[%clk 00:33:52]} {[%emt 00:00:01]} 25. Rf1 {[%clk 00:15:34]}
{[%emt 00:00:02]} Rbf8 {[%clk 00:33:56]} {[%emt 00:00:06]} 26. Qe2 {[%clk
00:15:35]} {[%emt 00:00:09]} Rg5 {[%clk 00:32:19]} {[%emt 00:01:46]} 27. Ne4
{[%clk 00:15:11]} {[%emt 00:00:35]} Rxf1+ {[%clk 00:32:28]} {[%emt 00:00:01]}
28. Rxf1 {[%clk 00:15:19]} {[%emt 00:00:02]} Rg6 {[%clk 00:32:37]} {[%emt
00:00:01]} 29. Qf3 {[%clk 00:13:39]} {[%emt 00:01:50]} Kh7 {[%clk 00:32:34]}
{[%emt 00:00:13]} 30. Qf5 {[%clk 00:13:12]} {[%emt 00:00:37]} c6 {[%clk
00:32:20]} {[%emt 00:00:24]} 31. Kg2 {[%clk 00:12:52]} {[%emt 00:00:29]} d5
{[%clk 00:32:01]} {[%emt 00:00:30]} 32. Nc3 {[%clk 00:12:31]} {[%emt 00:00:32]}
dxc4 {[%clk 00:31:58]} {[%emt 00:00:13]} 33. dxc4 {[%clk 00:12:09]} {[%emt
00:00:32]} Qc5 {[%clk 00:31:44]} {[%emt 00:00:23]} 34. Qd3 {[%clk 00:11:41]}
{[%emt 00:00:38]} b5 {[%clk 00:31:30]} {[%emt 00:00:24]} 35. cxb5 {[%clk
00:10:46]} {[%emt 00:01:05]} axb5 {[%clk 00:31:30]} {[%emt 00:00:10]} 36. Ne4
{[%clk 00:10:36]} {[%emt 00:00:21]} Qe7 {[%clk 00:31:13]} {[%emt 00:00:26]} 37.
Bb4 {[%clk 00:10:03]} {[%emt 00:00:42]} Qe6 {[%clk 00:30:59]} {[%emt 00:00:24]}
38. Rf8 {[%clk 00:08:18]} {[%emt 00:01:55]} Qa2 {[%clk 00:30:36]} {[%emt
00:00:33]} 39. Bc3 {[%clk 00:07:36]} {[%emt 00:00:52]} Qe6 {[%clk 00:28:46]}
{[%emt 00:01:59]} 40. Rd8 {[%clk 00:06:56]} {[%emt 00:00:52]} Qb3 {[%clk
00:26:51]} {[%emt 00:02:04]} 41. Re8 {[%clk 00:04:17]} {[%emt 00:02:48]} Qf7
{[%clk 00:25:42]} {[%emt 00:01:20]} 42. Rxe5 {[%clk 00:03:36]} {[%emt
00:00:51]} Bb8 {[%clk 00:25:00]} {[%emt 00:00:53]} 43. Rc5 {[%clk 00:03:12]}
{[%emt 00:00:34]} Ba7 {[%clk 00:24:32]} {[%emt 00:00:37]} 44. Rxc6 {[%clk
00:02:51]} {[%emt 00:00:31]} Qf5 {[%clk 00:23:48]} {[%emt 00:00:55]} 45. Rxg6
{[%clk 00:02:42]} {[%emt 00:00:19]} Qxg6 {[%clk 00:23:53]} {[%emt 00:00:04]} 46.
Nf6+ {[%clk 00:02:18]} {[%emt 00:00:33]} gxf6 {[%clk 00:23:54]} {[%emt
00:00:10]} 47. Qxg6+ {[%clk 00:02:26]} {[%emt 00:00:01]} Kxg6 {[%clk 00:24:02]}
{[%emt 00:00:02]} 48. Kf3 {[%clk 00:02:36]} Kf5 {[%clk 00:24:04]} {[%emt
00:00:09]} 49. e4+ {[%clk 00:02:41]} {[%emt 00:00:05]} Ke6 {[%clk 00:24:00]}
{[%emt 00:00:14]} 50. Kg4 {[%clk 00:02:31]} {[%emt 00:00:20]} Bg1 {[%clk
00:24:01]} {[%emt 00:00:09]} 51. h3 {[%clk 00:02:31]} {[%emt 00:00:09]} Be3
{[%clk 00:24:09]} {[%emt 00:00:02]} 52. Kf3 {[%clk 00:02:19]} {[%emt 00:00:23]}
Bc1 {[%clk 00:24:13]} {[%emt 00:00:06]} 53. Bd4 {[%clk 00:02:22]} {[%emt
00:00:07]} Bd2 {[%clk 00:23:39]} {[%emt 00:00:44]} 54. h4 {[%clk 00:02:20]}
{[%emt 00:00:11]} Bc1 {[%clk 00:23:47]} {[%emt 00:00:03]} 55. Ke2 {[%clk
00:02:28]} {[%emt 00:00:02]} h5 {[%clk 00:23:51]} {[%emt 00:00:06]} 56. Kd3
{[%clk 00:02:31]} {[%emt 00:00:07]} f5 {[%clk 00:23:36]} {[%emt 00:00:26]} 57.
exf5+ {[%clk 00:02:22]} {[%emt 00:00:19]} Kxf5 {[%clk 00:23:44]} {[%emt
00:00:01]} 58. Kc2 {[%clk 00:02:18]} {[%emt 00:00:13]} Bh6 {[%clk 00:23:49]}
{[%emt 00:00:06]} 59. Bb6 {[%clk 00:02:15]} {[%emt 00:00:14]} Kg4 {[%clk
00:23:47]} {[%emt 00:00:11]} 60. Bc7 {[%clk 00:02:21]} {[%emt 00:00:05]} Kf5
{[%clk 00:23:09]} {[%emt 00:00:47]} 61. Kb3 {[%clk 00:02:26]} {[%emt 00:00:05]}
Ke6 {[%clk 00:23:06]} {[%emt 00:00:13]} 62. Kb4 {[%clk 00:02:22]} {[%emt
00:00:15]} Kd7 {[%clk 00:23:13]} {[%emt 00:00:02]} 63. Bf4 {[%clk 00:02:12]}
{[%emt 00:00:20]} Bg7 {[%clk 00:23:22]} 64. Kxb5 {[%clk 00:02:10]} {[%emt
00:00:13]} Bxb2 {[%clk 00:23:30]} {[%emt 00:00:02]} 65. a4 {[%clk 00:02:19]}
{[%emt 00:00:02]} Bc3 {[%clk 00:23:13]} {[%emt 00:00:27]} 66. a5 {[%clk
00:02:20]} {[%emt 00:00:09]} Bd4 {[%clk 00:23:14]} {[%emt 00:00:08]} 67. a6
{[%clk 00:02:22]} {[%emt 00:00:09]} Kc8 {[%clk 00:23:21]} {[%emt 00:00:02]} 68.
Kc6 {[%clk 00:02:28]} {[%emt 00:00:05]} Ba7 {[%clk 00:23:07]} {[%emt 00:00:23]}
69. Bc7 {[%clk 00:02:18]} {[%emt 00:00:20]} Bf2 {[%clk 00:23:10]} {[%emt
00:00:08]} 70. Bb6 {[%clk 00:02:17]} {[%emt 00:00:11]} Bxb6 {[%clk 00:22:50]}
{[%emt 00:00:30]} 71. Kxb6 {[%clk 00:02:24]} {[%emt 00:00:03]} Kb8 {[%clk
00:22:59]} 72. Kc6 {[%clk 00:02:30]} {[%emt 00:00:04]} Ka8 {[%clk 00:23:05]}
{[%emt 00:00:04]} 73. Kd6 {[%clk 00:02:38]} {[%emt 00:00:02]} 1-0

[Event "Skol-SM i Schack 2024, Grupp A"]
[Site "Arena Varberg, Kattegattsvagen 26, Varberg, Sweden"]
[Date "2024.10.12"]
[Round "4.3"]
[White "Persson Holm, Simon"]
[Black "Fridman, Arvid"]
[Result "0-1"]
[TimeControl "45 minutes + 10 seconds per move from move one."]
[WhiteFideId "1744380"]
[BlackFideId "1758632"]
[WhiteElo "1737"]
[BlackElo "1895"]

1. d4 {[%clk 00:45:19]} d5 {[%clk 00:45:11]} {[%emt 00:00:10]} 2. c4 {[%clk
00:45:26]} {[%emt 00:00:03]} c6 {[%clk 00:45:20]} 3. Nc3 {[%clk 00:45:24]}
{[%emt 00:00:12]} Nf6 {[%clk 00:45:28]} 4. Nf3 {[%clk 00:45:28]} {[%emt
00:00:07]} e6 {[%clk 00:45:34]} {[%emt 00:00:05]} 5. cxd5 {[%clk 00:45:26]}
{[%emt 00:00:12]} exd5 {[%clk 00:45:28]} {[%emt 00:00:15]} 6. Bg5 {[%clk
00:45:28]} {[%emt 00:00:09]} Be7 {[%clk 00:43:40]} {[%emt 00:01:58]} 7. h3
{[%clk 00:44:20]} {[%emt 00:01:18]} Ne4 {[%clk 00:39:57]} {[%emt 00:03:53]} 8.
Bxe7 {[%clk 00:39:17]} {[%emt 00:05:13]} Qxe7 {[%clk 00:40:01]} {[%emt
00:00:05]} 9. e3 {[%clk 00:39:07]} {[%emt 00:00:19]} Nd7 {[%clk 00:38:49]}
{[%emt 00:01:22]} 10. Bd3 {[%clk 00:38:19]} {[%emt 00:00:59]} O-O {[%clk
00:37:44]} {[%emt 00:01:14]} 11. O-O {[%clk 00:37:47]} {[%emt 00:00:42]} f5
{[%clk 00:34:30]} {[%emt 00:03:24]} 12. Qc2 {[%clk 00:35:17]} {[%emt 00:02:41]}
Rf6 {[%clk 00:34:19]} {[%emt 00:00:21]} 13. Ne2 {[%clk 00:32:58]} {[%emt
00:02:28]} g5 {[%clk 00:31:55]} {[%emt 00:02:34]} 14. Rab1 {[%clk 00:29:56]}
{[%emt 00:03:13]} a5 {[%clk 00:31:44]} {[%emt 00:00:21]} 15. a3 {[%clk
00:29:33]} {[%emt 00:00:32]} Rh6 {[%clk 00:30:49]} {[%emt 00:01:04]} 16. Nd2
{[%clk 00:21:58]} {[%emt 00:07:46]} Ndf6 {[%clk 00:28:53]} {[%emt 00:02:06]} 17.
b4 {[%clk 00:20:24]} {[%emt 00:01:44]} axb4 {[%clk 00:28:37]} {[%emt 00:00:25]}
18. axb4 {[%clk 00:20:18]} {[%emt 00:00:16]} g4 {[%clk 00:26:44]} {[%emt
00:02:03]} 19. Bxe4 {[%clk 00:14:53]} {[%emt 00:05:35]} fxe4 {[%clk 00:25:20]}
{[%emt 00:01:35]} 20. hxg4 {[%clk 00:12:15]} {[%emt 00:02:47]} Nxg4 {[%clk
00:24:43]} {[%emt 00:00:47]} 21. g3 {[%clk 00:10:49]} {[%emt 00:01:36]} Qg5
{[%clk 00:24:04]} {[%emt 00:00:49]} 22. Nf4 {[%clk 00:10:24]} {[%emt 00:00:36]}
Rh1+ {[%clk 00:24:01]} {[%emt 00:00:13]} 23. Kg2 {[%clk 00:09:53]} {[%emt
00:00:41]} Rh2+ {[%clk 00:24:09]} {[%emt 00:00:01]} 24. Kg1 {[%clk 00:09:58]}
{[%emt 00:00:05]} Qh6 {[%clk 00:24:05]} {[%emt 00:00:14]} 25. Nxe4 {[%clk
00:09:11]} {[%emt 00:00:57]} Bf5 {[%clk 00:23:55]} {[%emt 00:00:20]} 0-1

[Event "Skol-SM i Schack 2024, Grupp A"]
[Site "Arena Varberg, Kattegattsvagen 26, Varberg, Sweden"]
[Date "2024.10.12"]
[Round "5.7"]
[White "Savela, Julina"]
[Black "Persson Holm, Simon"]
[Result "0-1"]
[TimeControl "45 minutes + 10 seconds per move from move one."]
[WhiteFideId "1767437"]
[BlackFideId "1744380"]
[WhiteElo "1682"]
[BlackElo "1737"]

1. d4 {[%clk 00:45:17]} {[%emt 00:00:03]} d5 {[%clk 00:45:16]} {[%emt
00:00:04]} 2. Nc3 {[%clk 00:45:22]} {[%emt 00:00:05]} Nf6 {[%clk 00:45:10]}
{[%emt 00:00:17]} 3. Bg5 {[%clk 00:45:03]} {[%emt 00:00:29]} e6 {[%clk
00:43:41]} {[%emt 00:01:39]} 4. e4 {[%clk 00:44:53]} {[%emt 00:00:19]} dxe4
{[%clk 00:42:56]} {[%emt 00:00:55]} 5. Nxe4 {[%clk 00:44:28]} {[%emt 00:00:34]}
Be7 {[%clk 00:42:57]} {[%emt 00:00:11]} 6. Bd3 {[%clk 00:41:04]} {[%emt
00:03:34]} Nxe4 {[%clk 00:41:24]} {[%emt 00:01:43]} 7. Bxe7 {[%clk 00:39:21]}
{[%emt 00:01:53]} Qxe7 {[%clk 00:41:18]} {[%emt 00:00:16]} 8. Bxe4 {[%clk
00:39:13]} {[%emt 00:00:17]} Qb4+ {[%clk 00:41:02]} {[%emt 00:00:26]} 9. Kf1
{[%clk 00:35:56]} {[%emt 00:03:27]} Qxb2 {[%clk 00:40:04]} {[%emt 00:01:09]} 10.
Ne2 {[%clk 00:35:14]} {[%emt 00:00:51]} Nc6 {[%clk 00:34:35]} {[%emt 00:05:40]}
11. Bxc6+ {[%clk 00:34:23]} {[%emt 00:01:00]} bxc6 {[%clk 00:34:38]} {[%emt
00:00:07]} 12. h4 {[%clk 00:34:03]} {[%emt 00:00:30]} Ba6 {[%clk 00:34:25]}
{[%emt 00:00:24]} 13. Rh3 {[%clk 00:33:44]} {[%emt 00:00:29]} Rd8 {[%clk
00:33:11]} {[%emt 00:01:23]} 14. Rb1 {[%clk 00:23:22]} {[%emt 00:10:32]} Qxd4
{[%clk 00:27:30]} {[%emt 00:05:51]} 15. Qxd4 {[%clk 00:23:27]} {[%emt
00:00:06]} Rxd4 {[%clk 00:27:30]} {[%emt 00:00:10]} 16. Ra3 {[%clk 00:22:34]}
{[%emt 00:01:03]} Bb5 {[%clk 00:25:02]} {[%emt 00:02:38]} 17. Rxa7 {[%clk
00:18:08]} {[%emt 00:04:36]} O-O {[%clk 00:24:07]} {[%emt 00:01:05]} 18. g3
{[%clk 00:09:23]} {[%emt 00:08:55]} Rd2 {[%clk 00:23:48]} {[%emt 00:00:29]} 19.
Re1 {[%clk 00:01:24]} {[%emt 00:08:09]} Rfd8 {[%clk 00:22:32]} {[%emt
00:01:25]} 20. Ra5 {[%clk 00:00:34]} {[%emt 00:01:00]} Rxc2 {[%clk 00:21:52]}
{[%emt 00:00:50]} 21. a4 {[%clk 00:00:17]} {[%emt 00:00:27]} Bc4 {[%clk
00:21:28]} {[%emt 00:00:34]} 22. f3 {[%clk 00:00:11]} {[%emt 00:00:17]} f6
{[%clk 00:20:59]} {[%emt 00:00:38]} 23. Kf2 {[%clk 00:00:14]} {[%emt 00:00:07]}
Rdd2 {[%clk 00:20:16]} {[%emt 00:00:53]} 24. Ra8+ {[%clk 00:00:12]} {[%emt
00:00:12]} Kf7 {[%clk 00:20:17]} {[%emt 00:00:09]} 0-1

[Event "Skol-SM i Schack 2024, Grupp A"]
[Site "Arena Varberg, Kattegattsvagen 26, Varberg, Sweden"]
[Date "2024.10.12"]
[Round "4.4"]
[White "Demeestere, Ewoud"]
[Black "Frank, Anton"]
[Result "0-1"]
[TimeControl "45 minutes + 10 seconds per move from move one."]
[BlackTitle "CM"]
[WhiteFideId "1773585"]
[BlackFideId "1752383"]
[WhiteElo "1833"]
[BlackElo "2110"]

1. d4 {[%clk 00:45:18]} {[%emt 00:00:02]} d5 {[%clk 00:45:01]} {[%emt
00:00:19]} 2. c4 {[%clk 00:45:24]} {[%emt 00:00:05]} e6 {[%clk 00:45:10]}
{[%emt 00:00:01]} 3. Nc3 {[%clk 00:45:30]} {[%emt 00:00:04]} a6 {[%clk
00:45:19]} {[%emt 00:00:02]} 4. Nf3 {[%clk 00:44:30]} {[%emt 00:01:09]} dxc4
{[%clk 00:45:13]} {[%emt 00:00:15]} 5. a4 {[%clk 00:44:22]} {[%emt 00:00:18]}
Nc6 {[%clk 00:45:21]} {[%emt 00:00:02]} 6. e3 {[%clk 00:44:27]} {[%emt
00:00:05]} Na5 {[%clk 00:45:28]} {[%emt 00:00:03]} 7. Ne5 {[%clk 00:43:30]}
{[%emt 00:01:07]} Nf6 {[%clk 00:44:23]} {[%emt 00:01:15]} 8. Nxc4 {[%clk
00:43:26]} {[%emt 00:00:14]} c5 {[%clk 00:44:19]} {[%emt 00:00:14]} 9. dxc5
{[%clk 00:40:17]} {[%emt 00:03:20]} Qxd1+ {[%clk 00:43:24]} {[%emt 00:01:04]}
10. Kxd1 {[%clk 00:39:57]} {[%emt 00:00:30]} Nxc4 {[%clk 00:41:52]} {[%emt
00:01:42]} 11. Bxc4 {[%clk 00:40:00]} {[%emt 00:00:07]} Bxc5 {[%clk 00:41:59]}
{[%emt 00:00:04]} 12. b3 {[%clk 00:38:28]} {[%emt 00:01:41]} Bd7 {[%clk
00:41:02]} {[%emt 00:01:07]} 13. Ke2 {[%clk 00:37:52]} {[%emt 00:00:45]} Bb4
{[%clk 00:37:15]} {[%emt 00:03:58]} 14. Na2 {[%clk 00:36:06]} {[%emt 00:01:56]}
Bd6 {[%clk 00:35:43]} {[%emt 00:01:42]} 15. Nc3 {[%clk 00:34:54]} {[%emt
00:01:22]} Rc8 {[%clk 00:34:52]} {[%emt 00:01:01]} 16. Bb2 {[%clk 00:34:23]}
{[%emt 00:00:42]} Ke7 {[%clk 00:31:46]} {[%emt 00:03:15]} 17. f4 {[%clk
00:31:15]} {[%emt 00:03:18]} Bc6 {[%clk 00:30:09]} {[%emt 00:01:47]} 18. Rhg1
{[%clk 00:29:31]} {[%emt 00:01:54]} Rhd8 {[%clk 00:28:26]} {[%emt 00:01:53]} 19.
g4 {[%clk 00:25:32]} {[%emt 00:04:09]} Bb4 {[%clk 00:25:05]} {[%emt 00:03:30]}
20. Ba3 {[%clk 00:23:31]} {[%emt 00:02:12]} Bxa3 {[%clk 00:24:05]} {[%emt
00:01:11]} 21. Rxa3 {[%clk 00:23:32]} {[%emt 00:00:08]} Rd6 {[%clk 00:20:57]}
{[%emt 00:03:17]} 22. g5 {[%clk 00:22:15]} {[%emt 00:01:29]} Nd5 {[%clk
00:18:44]} {[%emt 00:02:23]} 23. Bxd5 {[%clk 00:18:58]} {[%emt 00:03:27]} Bxd5
{[%clk 00:18:45]} {[%emt 00:00:08]} 24. Rc1 {[%clk 00:17:07]} {[%emt 00:02:01]}
Kd7 {[%clk 00:18:16]} {[%emt 00:00:39]} 25. Na2 {[%clk 00:13:55]} {[%emt
00:03:21]} Be4 {[%clk 00:11:08]} {[%emt 00:07:19]} 26. Rxc8 {[%clk 00:12:43]}
{[%emt 00:01:22]} Kxc8 {[%clk 00:11:17]} {[%emt 00:00:02]} 27. b4 {[%clk
00:10:48]} {[%emt 00:02:05]} Bg6 {[%clk 00:11:14]} {[%emt 00:00:13]} 28. Rc3+
{[%clk 00:10:20]} {[%emt 00:00:38]} Kd7 {[%clk 00:10:57]} {[%emt 00:00:26]} 29.
Nc1 {[%clk 00:09:52]} {[%emt 00:00:38]} Bh5+ {[%clk 00:10:54]} {[%emt
00:00:14]} 30. Ke1 {[%clk 00:09:46]} {[%emt 00:00:15]} Rd1+ {[%clk 00:10:36]}
{[%emt 00:00:28]} 31. Kf2 {[%clk 00:09:39]} {[%emt 00:00:18]} Rd2+ {[%clk
00:10:44]} {[%emt 00:00:01]} 32. Kg3 {[%clk 00:09:28]} {[%emt 00:00:21]} b6
{[%clk 00:07:27]} {[%emt 00:03:28]} 33. Rd3+ {[%clk 00:08:59]} {[%emt
00:00:38]} Rxd3 {[%clk 00:07:36]} {[%emt 00:00:02]} 34. Nxd3 {[%clk 00:09:07]}
{[%emt 00:00:01]} f6 {[%clk 00:06:33]} {[%emt 00:01:13]} 35. Kf2 {[%clk
00:07:36]} {[%emt 00:01:42]} Kd6 {[%clk 00:05:19]} {[%emt 00:01:24]} 36. e4
{[%clk 00:07:18]} {[%emt 00:00:28]} Be8 {[%clk 00:05:25]} {[%emt 00:00:03]} 37.
Nb2 {[%clk 00:07:13]} {[%emt 00:00:15]} a5 {[%clk 00:04:05]} {[%emt 00:01:31]}
38. bxa5 {[%clk 00:05:21]} {[%emt 00:02:02]} bxa5 {[%clk 00:04:14]} 39. Nc4+
{[%clk 00:05:30]} Kc5 {[%clk 00:04:05]} {[%emt 00:00:18]} 40. Nxa5 {[%clk
00:05:38]} {[%emt 00:00:03]} Kd4 {[%clk 00:03:35]} {[%emt 00:00:38]} 41. Nb7
{[%clk 00:04:59]} {[%emt 00:00:49]} Bxa4 {[%clk 00:03:21]} {[%emt 00:00:24]} 42.
Nd6 {[%clk 00:04:08]} {[%emt 00:01:00]} fxg5 {[%clk 00:03:03]} {[%emt
00:00:29]} 43. fxg5 {[%clk 00:04:01]} {[%emt 00:00:18]} Ke5 {[%clk 00:03:03]}
{[%emt 00:00:09]} 44. Nb7 {[%clk 00:03:15]} {[%emt 00:00:56]} Bc6 {[%clk
00:03:12]} {[%emt 00:00:02]} 45. Nc5 {[%clk 00:03:19]} {[%emt 00:00:06]} Bxe4
{[%clk 00:03:15]} {[%emt 00:00:06]} 46. Ke3 {[%clk 00:03:21]} {[%emt 00:00:07]}
Bc6 {[%clk 00:02:28]} {[%emt 00:00:57]} 47. h4 {[%clk 00:02:39]} {[%emt
00:00:52]} Kf5 {[%clk 00:02:34]} {[%emt 00:00:05]} 48. Kf2 {[%clk 00:01:57]}
{[%emt 00:00:51]} e5 {[%clk 00:02:02]} {[%emt 00:00:41]} 49. Ke3 {[%clk
00:01:45]} {[%emt 00:00:22]} Kg4 {[%clk 00:01:31]} {[%emt 00:00:41]} 50. Ne6
{[%clk 00:01:54]} Kxh4 {[%clk 00:01:26]} {[%emt 00:00:17]} 51. Nxg7 {[%clk
00:01:23]} {[%emt 00:00:41]} Bd7 {[%clk 00:01:05]} {[%emt 00:00:31]} 52. Ke4
{[%clk 00:01:00]} {[%emt 00:00:33]} Kxg5 {[%clk 00:01:10]} {[%emt 00:00:04]} 53.
Kxe5 {[%clk 00:01:07]} {[%emt 00:00:03]} Kg6 {[%clk 00:01:15]} {[%emt
00:00:05]} 54. Ne6 {[%clk 00:00:56]} {[%emt 00:00:21]} Bxe6 {[%clk 00:01:23]}
{[%emt 00:00:03]} 55. Kxe6 {[%clk 00:01:04]} h5 {[%clk 00:01:29]} {[%emt
00:00:04]} 56. Ke5 {[%clk 00:01:14]} {[%emt 00:00:01]} Kg5 {[%clk 00:01:38]}
{[%emt 00:00:01]} 57. Ke4 {[%clk 00:01:23]} Kg4 {[%clk 00:01:47]} {[%emt
00:00:01]} 58. Ke3 {[%clk 00:01:32]} {[%emt 00:00:01]} Kg3 {[%clk 00:01:57]} 59.
Ke2 {[%clk 00:01:41]} Kg2 {[%clk 00:02:06]} 0-1

[Event "Skol-SM i Schack 2024, Grupp A"]
[Site "Arena Varberg, Kattegattsvagen 26, Varberg, Sweden"]
[Date "2024.10.12"]
[Round "5.8"]
[White "Walter, Fridolf"]
[Black "Stanton-Andersson, Coll"]
[Result "1-0"]
[TimeControl "45 minutes + 10 seconds per move from move one."]
[WhiteFideId "1753347"]
[BlackFideId "1758837"]
[WhiteElo "1708"]
[BlackElo "1542"]

1. e4 {[%clk 00:45:18]} {[%emt 00:00:02]} e5 {[%clk 00:45:15]} {[%emt
00:00:06]} 2. Nf3 {[%clk 00:45:22]} {[%emt 00:00:05]} Nc6 {[%clk 00:45:11]}
{[%emt 00:00:14]} 3. Bc4 {[%clk 00:45:26]} {[%emt 00:00:06]} Bc5 {[%clk
00:45:16]} {[%emt 00:00:06]} 4. c3 {[%clk 00:45:07]} {[%emt 00:00:28]} d6
{[%clk 00:44:13]} {[%emt 00:01:12]} 5. d4 {[%clk 00:43:12]} {[%emt 00:02:06]}
exd4 {[%clk 00:43:44]} {[%emt 00:00:39]} 6. cxd4 {[%clk 00:42:53]} {[%emt
00:00:28]} Bb6 {[%clk 00:43:42]} {[%emt 00:00:13]} 7. h3 {[%clk 00:40:49]}
{[%emt 00:02:14]} Nf6 {[%clk 00:39:46]} {[%emt 00:04:06]} 8. O-O {[%clk
00:37:01]} {[%emt 00:03:57]} O-O {[%clk 00:37:38]} {[%emt 00:02:19]} 9. d5
{[%clk 00:32:45]} {[%emt 00:04:25]} Ne5 {[%clk 00:34:36]} {[%emt 00:03:13]} 10.
Nxe5 {[%clk 00:32:15]} {[%emt 00:00:40]} dxe5 {[%clk 00:34:36]} {[%emt
00:00:10]} 11. Nc3 {[%clk 00:31:43]} {[%emt 00:00:42]} Qd6 {[%clk 00:33:37]}
{[%emt 00:01:08]} 12. Bb3 {[%clk 00:30:17]} {[%emt 00:01:36]} Bd4 {[%clk
00:30:17]} {[%emt 00:03:30]} 13. Nb5 {[%clk 00:28:37]} {[%emt 00:01:50]} Qb6
{[%clk 00:28:33]} {[%emt 00:01:52]} 14. Nxd4 {[%clk 00:28:05]} {[%emt
00:00:45]} Qxd4 {[%clk 00:27:22]} {[%emt 00:01:21]} 15. Qxd4 {[%clk 00:28:00]}
{[%emt 00:00:14]} exd4 {[%clk 00:27:27]} {[%emt 00:00:05]} 16. e5 {[%clk
00:27:36]} {[%emt 00:00:35]} Ne4 {[%clk 00:26:45]} {[%emt 00:00:52]} 17. Rd1
{[%clk 00:25:44]} {[%emt 00:02:02]} Re8 {[%clk 00:24:46]} {[%emt 00:02:09]} 18.
f4 {[%clk 00:24:16]} {[%emt 00:01:38]} Nc5 {[%clk 00:20:31]} {[%emt 00:04:25]}
19. Bc4 {[%clk 00:21:21]} {[%emt 00:03:05]} Bf5 {[%clk 00:17:02]} {[%emt
00:03:39]} 20. Rxd4 {[%clk 00:19:51]} {[%emt 00:01:40]} Rad8 {[%clk 00:14:55]}
{[%emt 00:02:18]} 21. b4 {[%clk 00:18:45]} {[%emt 00:01:14]} Na4 {[%clk
00:12:11]} {[%emt 00:02:55]} 22. Bd2 {[%clk 00:16:10]} {[%emt 00:02:44]} Nb6
{[%clk 00:10:18]} {[%emt 00:02:04]} 23. Bb3 {[%clk 00:15:54]} {[%emt 00:00:26]}
c6 {[%clk 00:09:06]} {[%emt 00:01:22]} 24. g4 {[%clk 00:15:10]} {[%emt
00:00:54]} Bc8 {[%clk 00:06:58]} {[%emt 00:02:18]} 25. d6 {[%clk 00:14:46]}
{[%emt 00:00:33]} Be6 {[%clk 00:06:20]} {[%emt 00:00:48]} 26. Kf2 {[%clk
00:08:49]} {[%emt 00:06:07]} f6 {[%clk 00:05:13]} {[%emt 00:01:19]} 27. exf6
{[%clk 00:05:42]} {[%emt 00:03:16]} gxf6 {[%clk 00:04:38]} {[%emt 00:00:44]} 28.
f5 {[%clk 00:05:09]} {[%emt 00:00:44]} Bd5 {[%clk 00:04:36]} {[%emt 00:00:12]}
29. Bf4 {[%clk 00:04:47]} {[%emt 00:00:31]} Bxb3 {[%clk 00:03:14]} {[%emt
00:01:33]} 30. axb3 {[%clk 00:04:49]} {[%emt 00:00:08]} Nd5 {[%clk 00:03:19]}
{[%emt 00:00:05]} 31. Bg3 {[%clk 00:03:52]} {[%emt 00:01:06]} a6 {[%clk
00:02:58]} {[%emt 00:00:32]} 32. Re1 {[%clk 00:01:44]} {[%emt 00:02:17]} Kf7
{[%clk 00:02:14]} {[%emt 00:00:55]} 33. Rde4 {[%clk 00:01:31]} {[%emt
00:00:23]} Kf8 {[%clk 00:00:58]} {[%emt 00:01:27]} 34. Re6 {[%clk 00:01:07]}
{[%emt 00:00:32]} Kf7 {[%clk 00:00:47]} {[%emt 00:00:21]} 35. h4 {[%clk
00:00:48]} {[%emt 00:00:29]} h6 {[%clk 00:00:43]} {[%emt 00:00:15]} 36. Kf3
{[%clk 00:00:43]} {[%emt 00:00:14]} Nxb4 {[%clk 00:00:25]} {[%emt 00:00:28]} 37.
d7 {[%clk 00:00:24]} {[%emt 00:00:29]} Rxe6 {[%clk 00:00:16]} {[%emt 00:00:20]}
38. fxe6+ {[%clk 00:00:30]} {[%emt 00:00:04]} 1-0